bitfinex-derivatives/quotes_ETHF0:USTF0_20260112
["timestamp","ask_amount","ask_price","bid_price","bid_amount"]
[1768205307809,0.81918148,3143.3,3142.4,1.2175995]
[1768205308008,2.27442011,3143.7,3143.0,1.2175995]
[1768205308211,0.00373231,3143.7,3143.2,1.2175995]
[1768205308709,0.00373231,3143.7,3143.0,1.2175995]
[1768205309611,0.00373231,3143.7,3142.1,0.13189051]
[1768205309807,1.35466947,3143.4,3142.2,1.2175995]
[1768205310211,1.35466947,3143.4,3141.8,0.00396831]
[1768205310212,0.13706997,3143.4,3142.4,1.2175995]
[1768205311614,0.13706997,3143.4,3142.5,1.2175995]
[1768205311824,0.13706997,3143.4,3141.9,1.2175995]
[1768205312003,0.13706997,3143.4,3142.6,1.2175995]
[1768205312312,2.27442011,3143.7,3142.6,1.2175995]
[1768205313114,2.41149008,3143.7,3142.6,1.2175995]
[1768205313800,2.41149008,3143.7,3142.8,1.2175995]
[1768205314004,2.41149008,3143.7,3142.6,1.2175995]
[1768205314914,2.41149008,3143.7,3143.0,1.2175995]
[1768205315115,0.14080228,3143.7,3143.0,1.2175995]
[1768205315601,0.00373231,3143.7,3142.8,1.2175995]
[1768205315808,2.79200906,3144.4,3143.6,2.435199]
[1768205316002,0.25660545,3144.9,3142.8,1.2175995]
[1768205316205,1.2175995,3144.3,3142.4,0.1320991]
[1768205316408,0.15918,3145.0,3142.4,0.1320991]
[1768205316409,1.2175995,3143.9,3142.4,0.1320991]
[1768205316702,4.86224085,3144.3,3142.8,1.2175995]
[1768205316908,1.21986381,3144.3,3142.4,0.1320991]
[1768205317212,1.21986381,3144.3,3142.9,1.2175995]
[1768205317407,1.21986381,3144.3,3142.1,2.44782486]
[1768205317614,1.2175995,3144.1,3142.8,1.2175995]
[1768205317908,0.13560292,3143.8,3142.6,1.2175995]
[1768205318717,0.13560292,3143.8,3142.8,1.2175995]
[1768205319108,4.86224085,3143.5,3142.8,1.2175995]
[1768205320015,0.77451293,3143.4,3142.8,1.2175995]
[1768205320218,0.77451293,3143.3,3142.8,1.2175995]
[1768205320509,4.86224085,3143.5,3142.8,1.2175995]
[1768205320712,0.77457367,3143.4,3142.8,1.2175995]
[1768205320917,4.86224085,3143.5,3142.1,0.1320991]
[1768205320918,4.86224085,3143.5,3143.0,1.2175995]
[1768205321112,5.63682364,3143.4,3142.8,1.2175995]
[1768205321309,1.21986381,3144.3,3142.8,1.2175995]
[1768205321310,0.63192821,3143.3,3142.8,1.2175995]
[1768205321617,0.13560292,3143.9,3141.9,3.1615995]
[1768205321810,0.13560292,3143.9,3142.7,1.2175995]
[1768205322010,0.13560292,3143.9,3142.8,1.2175995]
[1768205322407,4.86224085,3143.6,3142.8,1.2175995]
[1768205323913,4.86224085,3143.6,3143.0,1.2175995]
[1768205324112,1.43860292,3143.9,3143.0,1.2175995]
[1768205324309,4.86224085,3143.7,3143.0,1.2175995]
[1768205326213,4.86224085,3143.7,3143.2,1.2175995]
[1768205326513,0.13560292,3143.9,3143.2,1.2175995]
[1768205326718,4.86224085,3143.6,3143.2,1.2175995]
[1768205329019,4.86224085,3143.6,3141.9,3.32347338]
[1768205329223,0.13560292,3143.9,3143.1,1.2175995]
[1768205329523,1.44160292,3143.9,3143.1,1.2175995]
[1768205329718,4.86224085,3143.5,3143.1,1.2175995]
[1768205330218,4.86224085,3143.5,3143.3,1.2175995]
[1768205330421,0.13560292,3143.8,3142.1,0.15933]
[1768205330718,4.86224085,3143.3,3142.6,1.2175995]
[1768205331318,0.13560292,3143.5,3142.1,0.15933]
[1768205331519,1.2175995,3143.3,3141.8,0.00396831]
[1768205331720,0.13560292,3143.2,3142.0,1.2175995]
[1768205332824,0.13560292,3143.2,3142.2,1.2175995]
[1768205333317,0.13560292,3143.2,3141.8,0.00396831]
[1768205333318,0.77411268,3143.1,3141.8,0.00396831]
[1768205333518,0.77411268,3143.0,3141.8,0.00396831]
[1768205335119,0.76859277,3143.0,3141.8,0.00396831]
[1768205335410,0.13560292,3143.5,3141.8,0.00396831]
[1768205335623,4.99784377,3143.4,3141.8,0.00396831]
[1768205339625,0.13560292,3143.3,3141.8,0.00396831]
[1768205339928,0.13560292,3143.1,3141.8,0.00396831]
[1768205347231,0.14043277,3142.9,3141.8,0.00396831]
[1768205347422,0.90456326,3142.8,3141.8,0.00396831]
[1768205347621,0.14043277,3142.8,3141.8,0.00396831]
[1768205350232,4.86224085,3142.6,3141.8,0.00396831]
[1768205350433,5.00732193,3142.6,3141.8,0.00396831]
[1768205351320,0.14508108,3142.6,3141.8,0.00396831]
[1768205360030,2.26944881,3143.6,3141.8,0.00396831]
[1768205360441,3.03414711,3143.6,3141.8,0.00396831]
[1768205360736,0.7646983,3143.5,3141.8,0.00396831]
[1768205360936,0.7646983,3143.4,3141.8,0.00396831]
[1768205361138,0.7646983,3143.3,3141.8,0.00396831]
[1768205361333,0.7646983,3143.2,3141.8,0.00396831]
[1768205361531,0.7646983,3143.1,3141.8,0.00396831]
[1768205361732,0.7646983,3143.0,3141.8,0.00396831]
[1768205361936,0.7646983,3142.9,3141.8,0.00396831]
[1768205362142,0.7646983,3142.8,3141.8,0.00396831]
[1768205362437,0.14508108,3143.1,3141.8,0.00396831]
[1768205362631,0.76530928,3143.0,3141.8,0.00396831]
[1768205362831,0.76530928,3142.9,3141.8,0.00396831]
[1768205363031,0.76530928,3142.8,3141.8,0.00396831]
[1768205363331,0.14508108,3143.1,3141.8,0.00396831]
[1768205363532,0.76529313,3143.0,3141.8,0.00396831]
[1768205363736,0.76529313,3142.9,3141.8,0.00396831]
[1768205363939,0.76529313,3142.8,3141.8,0.00396831]
[1768205364126,0.14508108,3143.1,3141.8,0.00396831]
[1768205364331,0.76529223,3143.0,3141.8,0.00396831]
[1768205364531,0.76529223,3142.9,3141.8,0.00396831]
[1768205364731,0.76529223,3142.8,3141.8,0.00396831]
[1768205365032,0.14508108,3143.1,3141.8,0.00396831]
[1768205365229,0.76518468,3143.0,3141.8,0.00396831]
[1768205365446,0.76518468,3142.9,3141.8,0.00396831]
[1768205365632,0.76518468,3142.8,3141.8,0.00396831]
[1768205365833,0.14508108,3143.1,3141.8,0.00396831]
[1768205366028,0.76521564,3143.0,3141.8,0.00396831]
[1768205366239,0.76521564,3142.9,3141.8,0.00396831]
[1768205366442,0.76521564,3142.8,3141.8,0.00396831]
[1768205366740,0.14508108,3143.1,3141.8,0.00396831]
[1768205366939,0.76526132,3143.0,3141.8,0.00396831]
[1768205367142,0.76526132,3142.9,3141.8,0.00396831]
[1768205367338,0.76526132,3142.8,3141.8,0.00396831]
[1768205367641,0.14508108,3143.1,3141.8,0.00396831]
[1768205367943,0.765313,3143.0,3141.8,0.16331831]
[1768205368150,0.14508108,3143.1,3141.8,0.16331831]
[1768205369438,0.14508108,3143.8,3141.9,0.15934]
[1768205369638,0.14508108,3143.6,3141.9,0.15934]
[1768205369842,0.91035535,3143.5,3141.9,0.15934]
[1768205370041,0.76527427,3143.4,3141.9,0.15934]
[1768205370246,0.76527427,3143.3,3141.9,0.15934]
[1768205370450,0.76527427,3143.2,3141.9,0.15934]
[1768205370645,0.14508108,3143.5,3141.9,0.15934]
[1768205370941,0.91018491,3143.4,3141.9,0.15934]
[1768205371151,2.26944881,3144.2,3142.1,0.13205129]
[1768205371454,2.27171312,3144.3,3142.1,0.29138129]
[1768205372447,0.00226431,3144.3,3142.1,0.29138129]
[1768205372649,0.00226431,3144.3,3142.3,0.13205129]
[1768205373041,0.14734539,3144.3,3142.4,0.29137129]
[1768205373350,4.86224085,3144.1,3142.6,0.13205129]
[1768205374243,0.14734539,3144.3,3142.6,0.13205129]
[1768205374451,4.86224085,3144.2,3142.8,0.14129903]
[1768205374652,0.00226431,3144.3,3142.8,0.14129903]
[1768205374853,4.86224085,3144.1,3142.8,0.14129903]
[1768205376449,4.86224085,3144.1,3142.7,0.1593]
[1768205376648,5.00426607,3144.1,3142.7,0.1593]
[1768205376847,0.14202522,3144.0,3142.7,2.3943]
[1768205377644,0.14202522,3144.0,3142.7,2.235]
[1768205381364,4.86224085,3143.2,3142.7,2.235]
[1768205381571,0.14202522,3144.0,3142.7,2.235]
[1768205391370,0.75976028,3143.9,3142.7,2.235]
[1768205391572,0.14202522,3144.0,3142.7,2.235]
[1768205391776,0.75975769,3143.9,3142.7,2.235]
[1768205392076,0.14202522,3144.0,3142.7,2.235]
[1768205392274,0.75985723,3143.9,3142.7,2.235]
[1768205392475,0.14202522,3144.0,3142.7,2.235]
[1768205392674,0.76002302,3143.9,3142.7,2.235]
[1768205392972,0.14202522,3144.0,3142.7,2.235]
[1768205393178,0.76002899,3143.9,3142.7,2.235]
[1768205393373,0.14202522,3144.0,3142.7,2.235]
[1768205393576,0.76019887,3143.9,3142.7,2.235]
[1768205393774,0.14202522,3144.0,3142.7,2.235]
[1768205393975,0.76019887,3143.9,3142.7,2.235]
[1768205394175,0.14202522,3144.0,3142.7,2.235]
[1768205394376,0.76022912,3143.9,3142.7,2.235]
[1768205394577,0.14202522,3144.0,3142.7,2.235]
[1768205394777,0.76043093,3143.9,3142.7,2.235]
[1768205394980,0.14202522,3144.0,3142.7,2.235]
[1768205395279,0.76043548,3143.9,3142.7,2.235]
[1768205395466,0.76043548,3143.8,3142.7,2.235]
[1768205395669,0.14202522,3144.0,3142.7,2.235]
[1768205395869,0.76067009,3143.9,3142.7,2.235]
[1768205396070,0.76067009,3143.8,3142.7,2.235]
[1768205396271,0.14202522,3144.0,3142.7,2.235]
[1768205396474,0.76095235,3143.9,3142.7,2.235]
[1768205396673,0.76095235,3143.8,3142.7,2.235]
[1768205396874,0.14202522,3144.0,3142.7,2.235]
[1768205397073,0.76095292,3143.9,3142.7,2.235]
[1768205397271,0.14202522,3144.0,3142.7,2.235]
[1768205397272,0.76095292,3143.8,3143.2,1.21668972]
[1768205397477,0.14202522,3144.0,3143.2,1.21668972]
[1768205397677,0.76126969,3143.9,3143.2,1.21668972]
[1768205397875,0.76126969,3143.8,3143.2,1.21668972]
[1768205398076,0.14202522,3144.0,3143.2,1.21668972]
[1768205398378,0.76126982,3143.9,3143.2,1.21668972]
[1768205398577,0.14202522,3144.0,3143.2,1.21668972]
[1768205398578,0.76126982,3143.8,3143.2,1.21668972]
[1768205398873,0.76126982,3143.7,3143.2,1.21668972]
[1768205399076,0.14202522,3144.0,3143.2,1.21668972]
[1768205399273,0.76143696,3143.9,3143.2,1.21668972]
[1768205399475,0.76143696,3143.8,3143.2,1.21668972]
[1768205399677,0.76143696,3143.7,3143.2,1.21668972]
[1768205399877,0.14202522,3144.0,3143.2,1.21668972]
[1768205400077,0.76165324,3143.9,3143.2,1.21668972]
[1768205400278,0.76165324,3143.8,3143.2,1.21668972]
[1768205400481,0.76165324,3143.7,3143.2,1.21668972]
[1768205400677,0.76183019,3143.6,3142.4,3.186]
[1768205400982,0.14202522,3143.8,3142.7,1.21668972]
[1768205401179,0.76185311,3143.7,3143.1,1.21668972]
[1768205401378,0.76185311,3143.6,3143.1,1.21668972]
[1768205401588,0.14202522,3143.8,3143.1,1.21668972]
[1768205401879,0.76189874,3143.7,3143.1,1.21668972]
[1768205402080,0.76189874,3143.6,3143.1,1.21668972]
[1768205402279,0.14202522,3143.8,3143.1,1.21668972]
[1768205402581,0.7623302,3143.7,3143.1,1.21668972]
[1768205402783,0.7623302,3143.6,3143.1,1.21668972]
[1768205402980,0.14202522,3143.8,3143.1,1.21668972]
[1768205403181,0.76233739,3143.7,3143.1,1.21668972]
[1768205403378,0.76233739,3143.6,3143.1,1.21668972]
[1768205403577,0.14202522,3143.8,3143.1,1.21668972]
[1768205403781,0.76235238,3143.7,3143.1,1.21668972]
[1768205403981,0.76235238,3143.6,3143.1,1.21668972]
[1768205404181,0.14202522,3143.8,3143.1,1.21668972]
[1768205404384,0.76235921,3143.7,3143.1,1.21668972]
[1768205404583,0.76235921,3143.6,3143.1,1.21668972]
[1768205404885,0.14202522,3143.8,3143.1,1.21668972]
[1768205405182,0.76239275,3143.7,3143.1,1.21668972]
[1768205405385,0.76239275,3143.6,3143.1,1.21668972]
[1768205405585,0.14202522,3143.8,3143.1,1.21668972]
[1768205405886,0.76424996,3143.7,3143.1,1.21668972]
[1768205406080,0.76424996,3143.6,3143.1,1.21668972]
[1768205406279,0.14202522,3143.8,3143.1,1.21668972]
[1768205406481,0.76454747,3143.7,3143.1,1.21668972]
[1768205406683,0.76454747,3143.6,3143.1,1.21668972]
[1768205406987,0.76454747,3143.5,3143.1,1.21668972]
[1768205407182,0.14190118,3144.2,3143.1,1.21668972]
[1768205407383,0.76454779,3144.1,3143.1,1.21668972]
[1768205407580,0.76454779,3144.0,3143.1,1.21668972]
[1768205407778,0.76454779,3143.9,3143.1,1.21668972]
[1768205408094,0.76454779,3143.8,3143.3,1.21668972]
[1768205408283,0.76454779,3143.7,3143.3,1.21668972]
[1768205408483,0.76454779,3143.6,3143.3,1.21668972]
[1768205408784,0.14190118,3144.2,3143.3,1.21668972]
[1768205411788,0.14190118,3144.2,3142.6,0.14069575]
[1768205411994,0.14190118,3144.2,3142.9,1.21668972]
[1768205415991,0.13597291,3144.1,3142.9,1.21668972]
[1768205417392,2.42866881,3144.3,3143.0,0.13213131]
[1768205417592,2.97286347,3145.4,3143.9,0.13213131]
[1768205417799,0.13597291,3145.1,3143.7,1.21668972]
[1768205418100,1.35266263,3145.0,3143.5,1.21668972]
[1768205418300,0.13597291,3144.9,3143.2,2.212]
[1768205418596,1.21668972,3144.7,3143.2,2.212]
[1768205418794,1.35266263,3144.7,3143.4,1.21668972]
[1768205419592,0.13597291,3144.4,3143.0,1.21668972]
[1768205419795,0.13597291,3144.4,3142.6,0.13213131]
[1768205419990,0.13597291,3144.4,3143.1,1.21668972]
[1768205420696,0.76387594,3144.3,3143.1,1.21668972]
[1768205420892,0.76387594,3144.2,3143.1,1.21668972]
[1768205421091,0.76387594,3144.1,3143.1,1.21668972]
[1768205421298,0.13597291,3144.4,3143.1,1.21668972]
[1768205421495,0.76407361,3144.3,3143.1,1.21668972]
[1768205421694,0.76407361,3144.2,3143.1,1.21668972]
[1768205421894,0.76407361,3144.1,3143.1,1.21668972]
[1768205422100,0.76407902,3144.0,3142.6,0.13213131]
[1768205422395,0.76407902,3143.9,3142.7,1.21668972]
[1768205422699,0.76407902,3143.8,3142.7,1.21668972]
[1768205422899,0.76407902,3143.7,3142.8,1.21668972]
[1768205423102,0.13597291,3144.0,3142.8,1.21668972]
[1768205423303,0.76399598,3143.9,3142.8,1.21668972]
[1768205423488,0.76399598,3143.8,3143.2,1.21668972]
[1768205423694,0.13597291,3144.4,3143.4,1.21668972]
[1768205423892,0.76395315,3144.3,3143.4,1.21668972]
[1768205424100,0.76395315,3144.2,3143.4,1.21668972]
[1768205424298,0.76395315,3144.1,3143.4,1.21668972]
[1768205424500,0.76395315,3144.0,3143.4,1.21668972]
[1768205424700,0.76395315,3143.9,3143.4,1.21668972]
[1768205424893,0.76395315,3143.8,3143.3,1.21668972]
[1768205425096,0.76395315,3143.7,3143.3,1.21668972]
[1768205425296,0.13597291,3144.4,3143.3,1.21668972]
[1768205425493,0.76395517,3144.3,3143.3,1.21668972]
[1768205425693,0.76395517,3144.2,3143.3,1.21668972]
[1768205425896,0.76395517,3144.1,3143.3,1.21668972]
[1768205426194,0.76395517,3144.0,3143.3,1.21668972]
[1768205426397,0.76395517,3143.9,3143.3,1.21668972]
[1768205426597,0.76395517,3143.8,3143.3,1.21668972]
[1768205426803,0.13597291,3144.4,3143.3,1.21668972]
[1768205427100,0.76388905,3144.3,3143.8,1.21668972]
[1768205427398,0.76388905,3144.2,3143.6,1.21668972]
[1768205427594,0.76388905,3144.1,3143.6,1.21668972]
[1768205427795,0.76388905,3144.0,3143.6,1.21668972]
[1768205428108,0.76388905,3143.9,3143.6,1.21668972]
[1768205428298,3.71238862,3144.8,3143.6,1.21668972]
[1768205430301,0.13597291,3144.6,3143.4,1.21668972]
[1768205430492,0.13597291,3144.2,3143.0,1.21668972]
[1768205430697,0.13597291,3144.2,3143.1,1.21668972]
[1768205431302,0.13597291,3144.2,3143.3,1.21668972]
[1768205432107,0.13597291,3144.2,3142.8,1.21668972]
[1768205432403,0.13597291,3144.2,3142.8,0.13213131]
[1768205432604,0.13597291,3144.2,3142.8,1.34882103]
[1768205432904,0.13597291,3144.2,3143.2,1.21668972]
[1768205433298,1.35266263,3144.0,3142.7,1.21668972]
[1768205433598,0.13597291,3144.0,3142.7,1.21668972]
[1768205434398,0.13597291,3144.0,3142.9,1.21668972]
[1768205440212,0.75826587,3143.9,3142.9,1.21668972]
[1768205440410,0.75826587,3143.8,3142.9,1.21668972]
[1768205440710,0.75826587,3143.7,3142.9,1.21668972]
[1768205440911,0.13597291,3144.0,3142.9,1.21668972]
[1768205441104,0.75826482,3143.9,3142.9,1.21668972]
[1768205441304,0.75826482,3143.8,3142.9,1.21668972]
[1768205441514,0.75826482,3143.7,3142.9,1.21668972]
[1768205441703,0.13597291,3144.0,3142.9,1.21668972]
[1768205441904,0.75826138,3143.9,3142.9,1.21668972]
[1768205442102,0.75826138,3143.8,3142.9,1.21668972]
[1768205442306,0.75826138,3143.7,3143.1,1.21668972]
[1768205442601,0.13597291,3144.0,3143.1,1.21668972]
[1768205442803,0.75844886,3143.9,3143.1,1.21668972]
[1768205443120,0.75844886,3143.8,3143.3,1.21668972]
[1768205443311,0.1320563,3144.5,3143.5,1.21668972]
[1768205443604,0.1320563,3144.5,3143.7,1.21668972]
[1768205443813,2.27041571,3144.8,3144.1,1.21668972]
[1768205444018,0.0024841,3144.9,3144.1,1.21992838]
[1768205444210,0.0024841,3144.9,3144.3,1.21668972]
[1768205444897,0.0024841,3144.9,3144.1,0.00323866]
[1768205445506,0.0024841,3144.9,3144.2,1.21668972]
[1768205446611,1.309,3145.5,3144.6,1.21668972]
[1768205446912,1.309,3145.5,3144.4,1.21668972]
[1768205447514,1.31305746,3145.5,3144.4,1.21668972]
[1768205448010,1.21668972,3145.4,3144.1,0.00323866]
[1768205448216,1.311,3145.3,3144.1,0.00323866]
[1768205448413,1.34874602,3145.2,3144.1,0.00323866]
[1768205449116,1.4430563,3145.2,3144.1,0.00323866]
[1768205451214,1.311,3145.2,3144.1,0.00323866]
[1768205453017,1.311,3145.2,3144.1,1.21992838]
[1768205453922,1.311,3145.2,3143.1,1.71769039]
[1768205453923,0.1320563,3145.1,3143.1,0.13250411]
[1768205454221,1.21668972,3144.8,3143.4,1.21668972]
[1768205454417,1.34874602,3144.8,3143.4,1.21668972]
[1768205454618,1.34874602,3144.6,3143.1,0.13250411]
[1768205454816,1.34874602,3144.6,3143.2,1.21668972]
[1768205455320,0.75801589,3144.5,3143.2,0.00281052]
[1768205455513,0.75801589,3144.4,3143.2,0.00281052]
[1768205455718,0.75801589,3144.3,3143.2,0.00281052]
[1768205455922,0.75801589,3144.2,3143.2,0.00281052]
[1768205456120,0.75801589,3144.1,3143.2,0.00281052]
[1768205456320,0.1320563,3144.6,3143.2,0.00281052]
[1768205456521,0.75798087,3144.5,3143.2,0.00281052]
[1768205456722,0.75798087,3144.4,3143.2,0.00281052]
[1768205457023,0.75798087,3144.3,3143.2,0.00281052]
[1768205457221,0.75798087,3144.2,3143.2,0.00281052]
[1768205457421,0.75798087,3144.1,3143.2,0.00281052]
[1768205457718,0.75804492,3144.0,3143.2,0.00281052]
[1768205457928,0.1320563,3144.4,3143.2,0.00281052]
[1768205458224,0.75804087,3144.3,3143.2,0.00281052]
[1768205458416,0.75804087,3144.2,3143.2,0.00281052]
[1768205458621,0.75804087,3144.1,3143.2,0.00281052]
[1768205458822,0.75804087,3144.0,3143.2,0.00281052]
[1768205459015,0.1320563,3144.2,3143.2,0.00281052]
[1768205459220,0.75806043,3144.1,3143.2,0.00281052]
[1768205459419,0.75806043,3144.0,3143.2,0.00281052]
[1768205459621,0.1320563,3144.2,3143.2,0.00281052]
[1768205459820,0.7580535,3144.1,3143.2,0.00281052]
[1768205460018,0.7580535,3144.0,3143.2,0.00281052]
[1768205460215,0.7580535,3143.9,3143.2,0.00281052]
[1768205460416,0.75797126,3143.8,3143.2,0.00281052]
[1768205460622,0.1320563,3144.2,3143.2,0.00281052]
[1768205460823,0.7579737,3144.1,3143.2,0.00281052]
[1768205461023,0.7579737,3144.0,3143.2,0.00281052]
[1768205461325,0.7579737,3143.9,3143.2,0.00281052]
[1768205461526,0.7579737,3143.8,3143.2,0.00281052]
[1768205461727,0.1320563,3144.2,3142.7,0.13250411]
[1768205461927,0.75796406,3144.1,3142.7,0.13250411]
[1768205462130,0.75796406,3144.0,3142.7,0.13250411]
[1768205462425,0.75796406,3143.9,3142.7,0.13250411]
[1768205462627,0.75796406,3143.8,3142.7,0.13481125]
[1768205462927,0.1320563,3144.2,3142.7,0.13481125]
[1768205463133,0.75795082,3144.1,3142.7,0.13481125]
[1768205463330,0.75795082,3144.0,3142.7,0.13481125]
[1768205463527,0.75795082,3143.9,3142.7,0.13481125]
[1768205463824,0.75795082,3143.8,3142.7,0.13481125]
[1768205464024,0.1320563,3144.2,3142.7,0.13481125]
[1768205464220,0.75793543,3144.1,3142.7,0.13481125]
[1768205464420,0.75793543,3144.0,3142.7,0.13481125]
[1768205464622,0.75793543,3143.9,3142.7,0.13481125]
[1768205464819,0.1320563,3144.2,3142.7,0.13481125]
[1768205465026,0.75785536,3144.1,3142.7,0.13481125]
[1768205465223,0.75785536,3144.0,3142.7,0.13481125]
[1768205465424,0.75785536,3143.9,3142.7,0.13481125]
[1768205465622,0.1320563,3144.2,3142.7,0.13481125]
[1768205465623,0.75785536,3143.8,3142.7,0.13481125]
[1768205465828,1.31,3144.5,3142.7,0.13481125]
[1768205466029,0.76308954,3144.4,3142.7,0.13481125]
[1768205466229,0.76308954,3144.3,3142.7,0.13481125]
[1768205466428,0.76308954,3144.2,3142.7,0.13481125]
[1768205466630,0.76308954,3144.1,3142.7,0.13481125]
[1768205466826,0.76308954,3144.0,3142.7,0.13481125]
[1768205467031,0.76308954,3143.9,3142.7,0.13481125]
[1768205467235,1.31,3144.5,3142.7,0.13481125]
[1768205467425,0.76310709,3144.4,3142.7,0.13481125]
[1768205467635,0.76310709,3144.3,3142.7,0.13481125]
[1768205467834,0.76310709,3144.2,3142.7,0.13481125]
[1768205468035,0.76310709,3144.1,3142.7,0.13481125]
[1768205468238,0.76310709,3144.0,3142.7,0.13481125]
[1768205468535,0.76310709,3143.9,3142.7,0.13481125]
[1768205468735,0.76310709,3143.8,3142.7,0.13481125]
[1768205468936,0.13254445,3144.3,3142.7,0.13481125]
[1768205469235,0.89566324,3144.2,3142.7,0.13481125]
[1768205469441,0.76311879,3144.1,3142.7,0.13481125]
[1768205469639,0.89566324,3144.0,3142.7,0.00230714]
[1768205469940,0.89566324,3143.9,3142.7,0.00230714]
[1768205470139,0.76311879,3143.8,3142.7,0.00230714]
[1768205470336,0.13254445,3143.9,3142.7,0.00230714]
[1768205470531,0.76311695,3143.8,3142.7,0.00230714]
[1768205470731,0.13254445,3143.9,3142.7,0.00230714]
[1768205470935,0.76312024,3143.8,3142.7,0.00230714]
[1768205471135,0.13254445,3143.9,3142.7,0.00230714]
[1768205471337,0.76309062,3143.8,3142.7,0.00230714]
[1768205471638,0.13254445,3143.9,3142.7,0.00230714]
[1768205471835,0.76308893,3143.8,3142.7,0.00230714]
[1768205472037,0.13254445,3143.9,3142.7,0.00230714]
[1768205472236,0.76308928,3143.8,3142.7,0.00230714]
[1768205472437,0.13254445,3143.9,3142.7,0.00230714]
[1768205472633,0.76309044,3143.8,3142.7,0.00230714]
[1768205472834,0.13375199,3144.3,3142.9,1.21666689]
[1768205473030,0.76309041,3144.2,3142.9,1.21666689]
[1768205473236,0.76309041,3144.1,3142.9,1.21666689]
[1768205473532,0.76309041,3144.0,3142.9,1.21666689]
[1768205473729,0.76309041,3143.9,3142.9,1.21666689]
[1768205473933,0.76309041,3143.8,3142.9,1.21666689]
[1768205474135,0.13375199,3144.3,3142.9,1.21666689]
[1768205474435,0.76308909,3144.2,3142.9,1.21666689]
[1768205474635,0.76308909,3144.1,3142.9,1.21666689]
[1768205474836,0.76308909,3144.0,3142.9,1.21666689]
[1768205475145,0.76308909,3143.9,3142.9,1.21666689]
[1768205475344,0.76308909,3143.8,3142.9,1.21666689]
[1768205475545,0.13375199,3144.3,3142.9,1.21666689]
[1768205475746,0.76309998,3144.2,3142.9,1.21666689]
[1768205476043,0.76309998,3144.1,3142.9,1.21666689]
[1768205476244,0.76309998,3144.0,3142.9,1.21666689]
[1768205476446,0.76309998,3143.9,3142.7,0.146907]
[1768205476643,0.76309998,3143.8,3142.8,1.21666689]
[1768205476843,0.13375199,3144.3,3142.8,1.21666689]
[1768205477044,0.76312347,3144.2,3142.8,1.21666689]
[1768205477243,0.13375199,3144.3,3142.7,0.146907]
[1768205477244,0.76312347,3144.1,3142.7,0.146907]
[1768205477447,0.76312347,3144.0,3142.8,1.21666689]
[1768205477745,0.76312347,3143.9,3142.8,1.21666689]
[1768205477934,0.76312347,3143.8,3142.8,1.21666689]
[1768205478140,0.13375199,3144.3,3142.8,1.21666689]
[1768205478334,0.76355759,3144.2,3142.8,1.21666689]
[1768205478543,0.76355759,3144.1,3142.8,1.21666689]
[1768205478839,0.76355759,3144.0,3142.8,1.21666689]
[1768205479035,0.76355759,3143.9,3142.8,1.21666689]
[1768205479239,0.76355759,3143.8,3142.8,1.21666689]
[1768205479436,0.76355759,3143.7,3142.9,0.14459986]
[1768205479641,2.5633777,3144.6,3142.9,0.14459986]
[1768205479940,0.89754381,3144.5,3142.9,0.14459986]
[1768205480135,0.76379182,3144.4,3142.9,0.14459986]
[1768205480346,0.76379182,3144.3,3142.9,0.14459986]
[1768205480545,0.76379182,3144.2,3142.9,0.14459986]
[1768205480740,0.76379182,3144.1,3142.9,0.14459986]
[1768205480950,0.76379182,3144.0,3142.9,0.14459986]
[1768205481144,0.76379182,3143.9,3142.8,1.21666689]
[1768205481337,0.76379182,3143.8,3142.8,1.21666689]
[1768205481541,0.76379182,3143.7,3142.8,1.21666689]
[1768205481750,0.13375199,3144.2,3142.8,1.21666689]
[1768205481947,0.7643088,3144.1,3142.8,1.21666689]
[1768205482147,0.7643088,3144.0,3142.8,1.21666689]
[1768205482345,0.76468483,3143.9,3142.8,1.21666689]
[1768205482549,0.76468483,3143.8,3142.8,1.21666689]
[1768205482751,0.76468483,3143.7,3142.8,1.21666689]
[1768205482953,0.76468483,3143.6,3142.8,1.21666689]
[1768205483151,0.13375199,3144.2,3142.8,1.21666689]
[1768205483351,0.76525034,3144.1,3142.8,1.21666689]
[1768205483549,0.76525034,3144.0,3142.8,1.21666689]
[1768205483750,0.00405746,3145.5,3144.0,0.15923]
[1768205483951,0.13780945,3145.5,3144.0,0.15923]
[1768205484142,0.13780945,3145.5,3144.6,1.21666689]
[1768205484345,0.13780945,3145.5,3144.0,0.15923]
[1768205484551,0.13780945,3145.5,3144.1,0.39289102]
[1768205484751,0.13780945,3145.5,3144.2,0.39289102]
[1768205484952,0.13780945,3145.5,3144.3,0.39289102]
[1768205485153,0.13780945,3145.5,3144.4,0.39289102]
[1768205485354,0.13780945,3145.5,3144.5,0.39289102]
[1768205485554,0.13780945,3145.5,3144.0,0.15923]
[1768205486452,0.13780945,3145.5,3144.3,1.21666689]
[1768205490359,0.13780945,3145.5,3144.7,1.21666689]
[1768205492356,0.13780945,3145.5,3144.3,1.21666689]
[1768205492855,0.13780945,3145.5,3143.9,1.21666689]
[1768205493760,0.13780945,3145.5,3143.7,1.21666689]
[1768205494162,0.13780945,3145.5,3143.7,1.37591689]
[1768205494563,0.13780945,3145.5,3144.4,1.21666689]
[1768205496066,0.00405746,3145.5,3144.4,1.21666689]
[1768205501466,0.16599121,3145.5,3144.4,1.21666689]
[1768205501673,0.16599121,3145.5,3143.8,0.15924]
[1768205506174,0.16193375,3145.3,3143.8,0.15924]
[1768205510873,0.16193375,3145.1,3143.7,1.21666689]
[1768205511077,0.16193375,3144.9,3143.3,1.21666689]
[1768205511273,0.16193375,3144.7,3143.3,1.21666689]
[1768205512564,0.16193375,3144.7,3143.3,2.9350514]
[1768205513171,0.74932389,3144.6,3143.4,1.71838451]
[1768205513368,0.16193375,3144.7,3143.4,1.71838451]
[1768205513571,0.74932407,3144.6,3143.4,1.71838451]
[1768205513780,0.16193375,3144.7,3143.4,1.71838451]
[1768205513979,0.7493227,3144.6,3143.4,1.71838451]
[1768205514277,0.16193375,3145.1,3143.7,1.21666689]
[1768205514478,0.74929439,3145.0,3143.7,1.21666689]
[1768205514772,0.74929439,3144.9,3144.1,1.21666689]
[1768205514972,0.74929439,3144.8,3144.1,1.21666689]
[1768205515279,0.74929439,3144.7,3144.1,1.21666689]
[1768205515476,0.16193375,3145.1,3144.1,1.21666689]
[1768205515677,0.74925349,3145.0,3144.1,1.21666689]
[1768205515978,0.74925349,3144.9,3144.1,1.21666689]
[1768205516179,0.74925349,3144.8,3144.1,1.21666689]
[1768205516378,0.74925349,3144.7,3144.1,1.21666689]
[1768205516576,0.16193375,3145.1,3144.1,1.21666689]
[1768205516778,0.74919338,3145.0,3144.1,1.21666689]
[1768205516974,0.74919338,3144.9,3144.1,1.21666689]
[1768205517174,0.16193375,3145.1,3144.1,1.21666689]
[1768205517175,0.74919338,3144.8,3144.1,1.21666689]
[1768205517376,0.74919338,3144.7,3144.3,1.21582432]
[1768205517576,0.16193375,3145.1,3144.3,1.21582432]
[1768205517778,0.74914855,3145.0,3144.3,1.21582432]
[1768205517977,0.74914855,3144.9,3144.3,1.21582432]
[1768205518180,0.74914855,3144.8,3144.3,1.21582432]